[Event "Titled Tuesday Blitz April 12 Early 2022"]
[White "Gabdrakhmanov, Azat"]
[Black "Silva, Kaua Marques"]
[WhiteFideId "34189197"]
[BlackFideId "22701168"]
[WhiteElo "2694"]
[BlackElo "2538"]
[Result "1-0"]
[Round "07"]
[TimeControl "180+1"]
[Date "2022.04.13"]
[WhiteClock "0:00:08"]
[BlackClock "0:00:02"]

1. e4 {[%clk 0:03:00]}  c5 {[%clk 0:02:54]} 2. Nf3 {[%clk 0:02:50]}  d6 {[%clk 0:02:51]} 3. d4 {[%clk 0:02:50]}  cxd4 {[%clk 0:02:52]} 4. Nxd4 {[%clk 0:02:51]}  Nf6 {[%clk 0:02:52]} 5. Nc3 {[%clk 0:02:51]}  Nc6 {[%clk 0:02:52]} 6. Bg5 {[%clk 0:02:49]}  e6 {[%clk 0:02:49]} 7. Qd2 {[%clk 0:02:49]}  Be7 {[%clk 0:02:48]} 8. f4 {[%clk 0:02:46]}  Bd7 {[%clk 0:02:48]} 9. O-O-O {[%clk 0:02:36]}  a6 {[%clk 0:02:45]} 10. Nxc6 {[%clk 0:02:33]}  Bxc6 {[%clk 0:02:46]} 11. Bd3 {[%clk 0:02:33]}  b5 {[%clk 0:02:35]} 12. e5 {[%clk 0:02:28]}  Nd5 {[%clk 0:02:29]} 13. Bxe7 {[%clk 0:02:21]}  Nxe7 {[%clk 0:02:29]} 14. Be4 {[%clk 0:02:11]}  d5 {[%clk 0:02:28]} 15. Bd3 {[%clk 0:02:11]}  b4 {[%clk 0:02:24]} 16. Ne2 {[%clk 0:02:11]}  a5 {[%clk 0:02:16]} 17. Rhf1 {[%clk 0:02:09]}  Qb6 {[%clk 0:02:08]} 18. Kb1 {[%clk 0:02:08]}  a4 {[%clk 0:02:03]} 19. g4 {[%clk 0:01:59]}  b3 {[%clk 0:01:51]} 20. cxb3 {[%clk 0:02:00]}  axb3 {[%clk 0:01:52]} 21. a3 {[%clk 0:02:00]}  d4 {[%clk 0:01:43]} 22. f5 {[%clk 0:01:56]}  exf5 {[%clk 0:01:26]} 23. gxf5 {[%clk 0:01:54]}  Nd5 {[%clk 0:01:25]} 24. Rc1 {[%clk 0:01:47]}  Ne3 {[%clk 0:01:09]} 25. Rg1 {[%clk 0:01:39]}  Bd7 {[%clk 0:00:59]} 26. e6 {[%clk 0:01:32]}  fxe6 {[%clk 0:00:58]} 27. Rxg7 {[%clk 0:01:30]}  e5 {[%clk 0:00:34]} 28. Ng3 {[%clk 0:01:07]}  Rc8 {[%clk 0:00:27]} 29. Ne4 {[%clk 0:00:49]}  Kd8 {[%clk 0:00:14]} 30. f6 {[%clk 0:00:15]}  Bb5 {[%clk 0:00:08]} 31. Rxc8+ {[%clk 0:00:09]}  Kxc8 {[%clk 0:00:06]} 32. f7 {[%clk 0:00:10]}  Bxd3+ {[%clk 0:00:05]} 33. Qxd3 {[%clk 0:00:11]}  Qc6 {[%clk 0:00:05]} 34. Qxb3 {[%clk 0:00:10]}  Qxe4+ {[%clk 0:00:04]} 35. Ka2 {[%clk 0:00:11]}  Rf8 {[%clk 0:00:03]} 36. Rg8 {[%clk 0:00:11]}  Qd5 {[%clk 0:00:01]} 37. Rxf8+ {[%clk 0:00:11]}  Kd7 {[%clk 0:00:01]} 38. Qxd5+ {[%clk 0:00:11]}  Nxd5 {[%clk 0:00:02]} 39. Rd8+ {[%clk 0:00:11]}  Kxd8 {[%clk 0:00:02]} 40. f8=Q+ {[%clk 0:00:12]}  Kd7 {[%clk 0:00:02]} 41. Qf5+ {[%clk 0:00:11]}  Kd6 {[%clk 0:00:03]} 42. Qxh7 {[%clk 0:00:12]}  Nf4 {[%clk 0:00:02]} 43. Qf5 {[%clk 0:00:11]}  Kd5 {[%clk 0:00:03]} 44. Qd7+ {[%clk 0:00:11]}  Ke4 {[%clk 0:00:03]} 45. Qc6+ {[%clk 0:00:12]}  Ke3 {[%clk 0:00:03]} 46. a4 {[%clk 0:00:12]}  e4 {[%clk 0:00:04]} 47. a5 {[%clk 0:00:12]}  d3 {[%clk 0:00:05]} 48. Qc5+ {[%clk 0:00:12]}  Ke2 {[%clk 0:00:05]} 49. Qg5 {[%clk 0:00:12]}  d2 {[%clk 0:00:04]} 50. Qxf4 {[%clk 0:00:11]}  d1=Q {[%clk 0:00:04]} 51. Qxe4+ {[%clk 0:00:12]}  Kf2 {[%clk 0:00:05]} 52. Qf4+ {[%clk 0:00:12]}  Kg2 {[%clk 0:00:05]} 53. Qg3+ {[%clk 0:00:12]}  Kh1 {[%clk 0:00:06]} 54. Qb3 {[%clk 0:00:09]}  Qd2 {[%clk 0:00:04]} 55. Qb6 {[%clk 0:00:07]}  Qd5+ {[%clk 0:00:03]} 56. Ka3 {[%clk 0:00:07]}  Qf3+ {[%clk 0:00:03]} 57. b3 {[%clk 0:00:08]}  Qf8+ {[%clk 0:00:03]} 58. Ka4 {[%clk 0:00:08]}  Qf3 {[%clk 0:00:04]} 59. a6 {[%clk 0:00:07]}  Qc3 {[%clk 0:00:03]} 60. Qb7+ {[%clk 0:00:07]}  Kg1 {[%clk 0:00:03]} 61. a7 {[%clk 0:00:08]}  Qa1+ {[%clk 0:00:03]} 62. Kb5 {[%clk 0:00:08]}  Qe5+ {[%clk 0:00:04]} 63. Ka6 {[%clk 0:00:08]}  Qe6+ {[%clk 0:00:02]} 64. Qb6+ {[%clk 0:00:08]} 1-0


[Site "https://www.chess.com"]

[Event "Titled Tuesday Blitz April 12 Early 2022"]
[White "Gracia Alvarez, Gerardo Antonio"]
[Black "Weetik, Vjacheslav"]
[WhiteFideId "5109124"]
[BlackFideId "4153472"]
[WhiteElo "2139"]
[BlackElo "2469"]
[Result "0-1"]
[Round "07"]
[TimeControl "180+1"]
[Date "2022.04.13"]
[WhiteClock "0:00:01"]
[BlackClock "0:00:04"]

1. e4 {[%clk 0:03:00]}  c6 {[%clk 0:02:59]} 2. c4 {[%clk 0:03:00]}  d5 {[%clk 0:03:00]} 3. cxd5 {[%clk 0:03:01]}  cxd5 {[%clk 0:03:00]} 4. exd5 {[%clk 0:03:02]}  Nf6 {[%clk 0:03:01]} 5. Qa4+ {[%clk 0:03:02]}  Nbd7 {[%clk 0:02:59]} 6. Nc3 {[%clk 0:03:02]}  a6 {[%clk 0:02:42]} 7. Nf3 {[%clk 0:02:53]}  b6 {[%clk 0:02:41]} 8. Bc4 {[%clk 0:02:45]}  Bb7 {[%clk 0:02:40]} 9. Bb3 {[%clk 0:02:33]}  g6 {[%clk 0:02:25]} 10. O-O {[%clk 0:02:31]}  Bg7 {[%clk 0:02:24]} 11. Re1 {[%clk 0:02:28]}  O-O {[%clk 0:02:23]} 12. Qh4 {[%clk 0:02:24]}  Nc5 {[%clk 0:02:20]} 13. Bc2 {[%clk 0:02:20]}  Nxd5 {[%clk 0:02:17]} 14. d4 {[%clk 0:02:13]}  Nb4 {[%clk 0:02:08]} 15. Bd1 {[%clk 0:01:42]}  Ncd3 {[%clk 0:02:04]} 16. Rxe7 {[%clk 0:01:39]}  Rb8 {[%clk 0:01:12]} 17. Bg5 {[%clk 0:01:02]}  Qd6 {[%clk 0:00:41]} 18. Ne5 {[%clk 0:00:24]}  h6 {[%clk 0:00:30]} 19. Nc4 {[%clk 0:00:10]}  hxg5 {[%clk 0:00:23]} 20. Nxd6 {[%clk 0:00:09]}  gxh4 {[%clk 0:00:23]} 21. Rxb7 {[%clk 0:00:09]}  Rxb7 {[%clk 0:00:22]} 22. Nxb7 {[%clk 0:00:09]}  Bxd4 {[%clk 0:00:23]} 23. Be2 {[%clk 0:00:08]}  Nxf2 {[%clk 0:00:18]} 24. Kf1 {[%clk 0:00:08]}  f5 {[%clk 0:00:04]} 25. Nd6 {[%clk 0:00:08]}  Ng4 {[%clk 0:00:04]} 26. h3 {[%clk 0:00:07]}  Ne3+ {[%clk 0:00:04]} 27. Ke1 {[%clk 0:00:06]}  b5 {[%clk 0:00:05]} 28. Rc1 {[%clk 0:00:04]}  Rd8 {[%clk 0:00:02]} 29. a3 {[%clk 0:00:05]}  Nbc2+ {[%clk 0:00:02]} 30. Kd2 {[%clk 0:00:03]}  Rxd6 {[%clk 0:00:03]} 31. Bd3 {[%clk 0:00:03]}  Bxc3+ {[%clk 0:00:03]} 32. Kxc3 {[%clk 0:00:04]}  Nd4 {[%clk 0:00:03]} 33. Kd2 {[%clk 0:00:03]}  Nc4+ {[%clk 0:00:03]} 34. Kc3 {[%clk 0:00:02]}  Ne5 {[%clk 0:00:03]} 35. Bf1 {[%clk 0:00:02]}  Kg7 {[%clk 0:00:03]} 36. Kb4 {[%clk 0:00:02]}  Kf6 {[%clk 0:00:04]} 37. Rc8 {[%clk 0:00:02]}  Ne6 {[%clk 0:00:04]} 38. Ka5 {[%clk 0:00:01]}  Rd2 {[%clk 0:00:03]} 39. a4 {[%clk 0:00:01]}  Rxb2 {[%clk 0:00:03]} 40. axb5 {[%clk 0:00:02]}  axb5 {[%clk 0:00:04]} 41. Bxb5 {[%clk 0:00:02]}  Kg5 {[%clk 0:00:04]} 42. Rg8 {[%clk 0:00:01]}  Nf4 {[%clk 0:00:04]} 43. Be8 {[%clk 0:00:01]}  Rxg2 {[%clk 0:00:04]} 0-1


[Site "https://www.chess.com"]

[Event "Titled Tuesday Blitz April 12 Early 2022"]
[White "Gunina, Valentina"]
[Black "Sjugirov, Sanan"]
[WhiteFideId "4167570"]
[BlackFideId "4189302"]
[WhiteElo "2381"]
[BlackElo "2602"]
[Result "0-1"]
[Round "07"]
[TimeControl "180+1"]
[Date "2022.04.12"]
[WhiteClock "0:00:38"]
[BlackClock "0:00:30"]

1. d4 {[%clk 0:02:58]}  Nf6 {[%clk 0:03:00]} 2. c4 {[%clk 0:02:58]}  c5 {[%clk 0:03:00]} 3. d5 {[%clk 0:02:58]}  e6 {[%clk 0:03:01]} 4. Nc3 {[%clk 0:02:58]}  exd5 {[%clk 0:03:02]} 5. cxd5 {[%clk 0:02:58]}  d6 {[%clk 0:03:02]} 6. Nf3 {[%clk 0:02:54]}  g6 {[%clk 0:03:02]} 7. Bf4 {[%clk 0:02:54]}  Bg7 {[%clk 0:03:01]} 8. e3 {[%clk 0:02:54]}  O-O {[%clk 0:03:00]} 9. h3 {[%clk 0:02:55]}  Ne8 {[%clk 0:02:51]} 10. Be2 {[%clk 0:02:54]}  Nd7 {[%clk 0:02:51]} 11. O-O {[%clk 0:02:54]}  Ne5 {[%clk 0:02:50]} 12. Nxe5 {[%clk 0:02:53]}  dxe5 {[%clk 0:02:49]} 13. Bh2 {[%clk 0:02:53]}  Nd6 {[%clk 0:02:49]} 14. e4 {[%clk 0:02:44]}  f5 {[%clk 0:02:41]} 15. exf5 {[%clk 0:02:44]}  gxf5 {[%clk 0:02:37]} 16. Rc1 {[%clk 0:02:32]}  Bd7 {[%clk 0:02:36]} 17. Qd2 {[%clk 0:02:25]}  b6 {[%clk 0:02:33]} 18. f4 {[%clk 0:02:14]}  e4 {[%clk 0:02:31]} 19. Nd1 {[%clk 0:02:15]}  Qf6 {[%clk 0:02:29]} 20. Kh1 {[%clk 0:02:12]}  Qd4 {[%clk 0:02:11]} 21. Qc2 {[%clk 0:02:12]}  a5 {[%clk 0:01:43]} 22. Nc3 {[%clk 0:02:08]}  a4 {[%clk 0:01:41]} 23. Rcd1 {[%clk 0:02:08]}  Qb4 {[%clk 0:01:36]} 24. a3 {[%clk 0:01:50]}  Qb3 {[%clk 0:01:36]} 25. Qxb3 {[%clk 0:01:44]}  axb3 {[%clk 0:01:36]} 26. Rc1 {[%clk 0:01:44]}  b5 {[%clk 0:01:06]} 27. g4 {[%clk 0:01:43]}  b4 {[%clk 0:00:58]} 28. axb4 {[%clk 0:01:42]}  cxb4 {[%clk 0:00:59]} 29. Nd1 {[%clk 0:01:42]}  Rfc8 {[%clk 0:00:58]} 30. Rxc8+ {[%clk 0:01:19]}  Rxc8 {[%clk 0:00:59]} 31. gxf5 {[%clk 0:01:14]}  Rc2 {[%clk 0:00:56]} 32. Bg4 {[%clk 0:01:14]}  Bb5 {[%clk 0:00:40]} 33. Rg1 {[%clk 0:00:58]}  Kf8 {[%clk 0:00:36]} 34. f6 {[%clk 0:00:42]}  Bxf6 {[%clk 0:00:36]} 35. Be6 {[%clk 0:00:40]}  Be2 {[%clk 0:00:32]} 36. Ne3 {[%clk 0:00:38]}  Bf3+ {[%clk 0:00:32]} 37. Ng2 {[%clk 0:00:37]}  Rxb2 {[%clk 0:00:31]} 38. f5 {[%clk 0:00:38]}  Ke7 {[%clk 0:00:30]} 0-1


[Site "https://www.chess.com"]

[Event "Titled Tuesday Blitz April 12 Early 2022"]
[White "Hoang, Thi Bao Tram"]
[Black "Zemlyanskii, Ivan"]
[WhiteFideId "12401102"]
[BlackFideId "24249971"]
[WhiteElo "2569"]
[BlackElo "2708"]
[Result "0-1"]
[Round "07"]
[TimeControl "180+1"]
[Date "2022.04.13"]
[WhiteClock "0:00:51"]
[BlackClock "0:01:00"]

1. Nf3 {[%clk 0:03:00]}  Nf6 {[%clk 0:03:00]} 2. g3 {[%clk 0:02:58]}  d5 {[%clk 0:03:00]} 3. Bg2 {[%clk 0:02:57]}  c5 {[%clk 0:03:01]} 4. O-O {[%clk 0:02:56]}  e6 {[%clk 0:03:02]} 5. d4 {[%clk 0:02:56]}  cxd4 {[%clk 0:03:02]} 6. Nxd4 {[%clk 0:02:56]}  e5 {[%clk 0:03:03]} 7. Nb3 {[%clk 0:02:55]}  Be6 {[%clk 0:03:03]} 8. c4 {[%clk 0:02:51]}  Nc6 {[%clk 0:03:02]} 9. cxd5 {[%clk 0:02:37]}  Nxd5 {[%clk 0:03:03]} 10. Bd2 {[%clk 0:02:33]}  Be7 {[%clk 0:02:53]} 11. Nc3 {[%clk 0:02:32]}  Qd7 {[%clk 0:02:53]} 12. Ne4 {[%clk 0:02:30]}  b6 {[%clk 0:02:53]} 13. Rc1 {[%clk 0:02:28]}  h6 {[%clk 0:02:45]} 14. Qc2 {[%clk 0:02:24]}  Rc8 {[%clk 0:02:38]} 15. Qb1 {[%clk 0:02:24]}  O-O {[%clk 0:02:37]} 16. Rfd1 {[%clk 0:02:24]}  f5 {[%clk 0:02:24]} 17. Nc3 {[%clk 0:02:22]}  e4 {[%clk 0:02:25]} 18. Be1 {[%clk 0:01:40]}  Rfd8 {[%clk 0:02:18]} 19. f3 {[%clk 0:01:38]}  exf3 {[%clk 0:01:51]} 20. Bxf3 {[%clk 0:01:38]}  Nxc3 {[%clk 0:01:51]} 21. Bxc3 {[%clk 0:01:38]}  Qe8 {[%clk 0:01:48]} 22. e4 {[%clk 0:01:37]}  Qg6 {[%clk 0:01:43]} 23. Re1 {[%clk 0:01:32]}  f4 {[%clk 0:01:43]} 24. e5 {[%clk 0:01:21]}  Qg5 {[%clk 0:01:39]} 25. Bd2 {[%clk 0:01:12]}  Nxe5 {[%clk 0:01:35]} 26. Bg2 {[%clk 0:01:09]}  Rxc1 {[%clk 0:01:16]} 27. Bxc1 {[%clk 0:01:08]}  Bxb3 {[%clk 0:01:12]} 28. Bxf4 {[%clk 0:01:06]}  Bc5+ {[%clk 0:00:58]} 29. Kh1 {[%clk 0:01:04]}  Qh5 {[%clk 0:00:59]} 30. Bxe5 {[%clk 0:00:59]}  Bd5 {[%clk 0:00:59]} 31. Bxd5+ {[%clk 0:00:56]}  Rxd5 {[%clk 0:01:00]} 32. Qe4 {[%clk 0:00:51]}  Rxe5 {[%clk 0:01:00]} 0-1


[Site "https://www.chess.com"]

[Event "Titled Tuesday Blitz April 12 Early 2022"]
[White "Ibadov, Dashgyn"]
[Black "Demin, Vladimir"]
[WhiteFideId "24107514"]
[BlackFideId "4167457"]
[WhiteElo "2138"]
[BlackElo "2402"]
[Result "1-0"]
[Round "07"]
[TimeControl "180+1"]
[Date "2022.04.13"]
[WhiteClock "0:01:38"]
[BlackClock "0:02:17"]

1. e4 {[%clk 0:03:00]}  Nf6 {[%clk 0:02:55]} 2. e5 {[%clk 0:02:58]}  Nd5 {[%clk 0:02:53]} 3. d4 {[%clk 0:02:58]}  d6 {[%clk 0:02:53]} 4. c4 {[%clk 0:02:58]}  Nb6 {[%clk 0:02:54]} 5. f4 {[%clk 0:02:58]}  dxe5 {[%clk 0:02:54]} 6. fxe5 {[%clk 0:02:58]}  Bf5 {[%clk 0:02:55]} 7. Nf3 {[%clk 0:02:54]}  e6 {[%clk 0:02:55]} 8. Be3 {[%clk 0:02:53]}  Bb4+ {[%clk 0:02:55]} 9. Nc3 {[%clk 0:02:53]}  c5 {[%clk 0:02:55]} 10. Be2 {[%clk 0:02:45]}  Nc6 {[%clk 0:02:55]} 11. O-O {[%clk 0:02:37]}  O-O {[%clk 0:02:45]} 12. Nb5 {[%clk 0:02:25]}  a6 {[%clk 0:02:33]} 13. Nd6 {[%clk 0:02:13]}  cxd4 {[%clk 0:02:32]} 14. Nxd4 {[%clk 0:02:13]}  Nxe5 {[%clk 0:02:23]} 15. N6xf5 {[%clk 0:02:06]}  exf5 {[%clk 0:02:22]} 16. Nxf5 {[%clk 0:02:02]}  Nbxc4 {[%clk 0:02:20]} 17. Bxc4 {[%clk 0:01:47]}  Nxc4 {[%clk 0:02:17]} 18. Qg4 {[%clk 0:01:38]} 1-0


[Site "https://www.chess.com"]

[Event "Titled Tuesday Blitz April 12 Early 2022"]
[White "Jobava, Baadur"]
[Black "Oganian, Miran"]
[WhiteFideId "13601520"]
[BlackFideId "4122488"]
[WhiteElo "2617"]
[BlackElo "2357"]
[Result "1-0"]
[Round "07"]
[TimeControl "180+1"]
[Date "2022.04.12"]
[WhiteClock "0:00:30"]
[BlackClock "0:00:03"]

1. b3 {[%clk 0:03:00]}  Nf6 {[%clk 0:02:58]} 2. Bb2 {[%clk 0:03:01]}  g6 {[%clk 0:02:58]} 3. c4 {[%clk 0:03:01]}  Bg7 {[%clk 0:02:58]} 4. g3 {[%clk 0:03:01]}  O-O {[%clk 0:02:58]} 5. Bg2 {[%clk 0:03:02]}  c6 {[%clk 0:02:59]} 6. Nf3 {[%clk 0:03:00]}  d5 {[%clk 0:02:59]} 7. O-O {[%clk 0:03:01]}  Nbd7 {[%clk 0:02:55]} 8. d3 {[%clk 0:03:00]}  b6 {[%clk 0:02:55]} 9. Nbd2 {[%clk 0:02:59]}  Bb7 {[%clk 0:02:55]} 10. Rc1 {[%clk 0:03:00]}  c5 {[%clk 0:02:53]} 11. cxd5 {[%clk 0:02:59]}  Bxd5 {[%clk 0:02:47]} 12. Rc2 {[%clk 0:02:59]}  Re8 {[%clk 0:02:45]} 13. Qa1 {[%clk 0:02:59]}  a5 {[%clk 0:02:41]} 14. a4 {[%clk 0:02:58]}  Qb8 {[%clk 0:02:35]} 15. Nc4 {[%clk 0:02:56]}  Qb7 {[%clk 0:02:27]} 16. Rd1 {[%clk 0:02:54]}  Rad8 {[%clk 0:02:27]} 17. e4 {[%clk 0:02:47]}  Bc6 {[%clk 0:02:25]} 18. Nfe5 {[%clk 0:02:37]}  Nxe5 {[%clk 0:02:25]} 19. Nxe5 {[%clk 0:02:38]}  Qa8 {[%clk 0:01:57]} 20. Nxc6 {[%clk 0:02:28]}  Qxc6 {[%clk 0:01:57]} 21. d4 {[%clk 0:02:26]}  Nxe4 {[%clk 0:01:37]} 22. Re1 {[%clk 0:02:06]}  f5 {[%clk 0:01:35]} 23. dxc5 {[%clk 0:02:05]}  Bxb2 {[%clk 0:01:33]} 24. Qxb2 {[%clk 0:02:06]}  bxc5 {[%clk 0:01:29]} 25. h4 {[%clk 0:02:03]}  Qf6 {[%clk 0:01:24]} 26. Qc1 {[%clk 0:01:59]}  Rd4 {[%clk 0:01:18]} 27. Bxe4 {[%clk 0:01:55]}  fxe4 {[%clk 0:01:18]} 28. Rxc5 {[%clk 0:01:55]}  Rf8 {[%clk 0:01:17]} 29. Rc2 {[%clk 0:01:48]}  Rd3 {[%clk 0:00:55]} 30. Rxe4 {[%clk 0:01:31]}  Qf3 {[%clk 0:00:55]} 31. Rce2 {[%clk 0:01:24]}  Rfd8 {[%clk 0:00:46]} 32. Qc4+ {[%clk 0:01:23]}  Kh8 {[%clk 0:00:45]} 33. Rxe7 {[%clk 0:01:14]}  Rd1+ {[%clk 0:00:26]} 34. Re1 {[%clk 0:01:14]}  Rf8 {[%clk 0:00:24]} 35. Qc5 {[%clk 0:01:03]}  Rd2 {[%clk 0:00:20]} 36. Qe5+ {[%clk 0:00:39]}  Qf6 {[%clk 0:00:20]} 37. Qxf6+ {[%clk 0:00:32]}  Rxf6 {[%clk 0:00:21]} 38. Ra7 {[%clk 0:00:30]}  Rdxf2 {[%clk 0:00:06]} 39. Re8+ {[%clk 0:00:29]}  Rf8 {[%clk 0:00:07]} 40. Rxf8+ {[%clk 0:00:30]}  Rxf8 {[%clk 0:00:07]} 41. Rxa5 {[%clk 0:00:31]}  Rf3 {[%clk 0:00:08]} 42. Rb5 {[%clk 0:00:31]}  Rxg3+ {[%clk 0:00:08]} 43. Kf2 {[%clk 0:00:32]}  Rh3 {[%clk 0:00:08]} 44. a5 {[%clk 0:00:32]}  Rxh4 {[%clk 0:00:08]} 45. Kg3 {[%clk 0:00:30]}  Rh1 {[%clk 0:00:08]} 46. b4 {[%clk 0:00:30]}  Kg7 {[%clk 0:00:06]} 47. a6 {[%clk 0:00:30]}  Rg1+ {[%clk 0:00:05]} 48. Kf2 {[%clk 0:00:30]}  Ra1 {[%clk 0:00:04]} 49. Ra5 {[%clk 0:00:30]}  Rb1 {[%clk 0:00:03]} 50. a7 {[%clk 0:00:30]} 1-0


[Site "https://www.chess.com"]

[Event "Titled Tuesday Blitz April 12 Early 2022"]
[White "Kazakouski, Valery"]
[Black "Martinez Alcantara, Jose Eduardo"]
[WhiteFideId "13507443"]
[BlackFideId "3805662"]
[WhiteElo "2524"]
[BlackElo "2690"]
[Result "1/2-1/2"]
[Round "07"]
[TimeControl "180+1"]
[Date "2022.04.12"]
[WhiteClock "0:00:29"]
[BlackClock "0:00:07"]

1. d4 {[%clk 0:02:56]}  Nf6 {[%clk 0:03:00]} 2. c4 {[%clk 0:02:54]}  e6 {[%clk 0:03:00]} 3. Nc3 {[%clk 0:02:54]}  Bb4 {[%clk 0:03:01]} 4. f3 {[%clk 0:02:54]}  c5 {[%clk 0:03:01]} 5. d5 {[%clk 0:02:55]}  d6 {[%clk 0:03:02]} 6. e4 {[%clk 0:02:55]}  O-O {[%clk 0:03:02]} 7. Ne2 {[%clk 0:02:53]}  b5 {[%clk 0:03:03]} 8. Kf2 {[%clk 0:02:51]}  bxc4 {[%clk 0:02:57]} 9. Nf4 {[%clk 0:02:52]}  e5 {[%clk 0:02:57]} 10. Nfe2 {[%clk 0:02:52]}  Ne8 {[%clk 0:02:55]} 11. g4 {[%clk 0:02:52]}  f6 {[%clk 0:02:48]} 12. Ng3 {[%clk 0:02:51]}  g6 {[%clk 0:02:49]} 13. Bxc4 {[%clk 0:02:50]}  Ng7 {[%clk 0:02:48]} 14. Kg2 {[%clk 0:02:49]}  Nd7 {[%clk 0:02:41]} 15. Bd2 {[%clk 0:02:43]}  Rb8 {[%clk 0:02:33]} 16. Qc2 {[%clk 0:02:38]}  Rf7 {[%clk 0:02:26]} 17. h4 {[%clk 0:02:26]}  Nb6 {[%clk 0:02:14]} 18. Be2 {[%clk 0:02:17]}  f5 {[%clk 0:02:06]} 19. h5 {[%clk 0:02:17]}  f4 {[%clk 0:02:04]} 20. hxg6 {[%clk 0:02:16]}  hxg6 {[%clk 0:02:05]} 21. Rh6 {[%clk 0:01:55]}  fxg3 {[%clk 0:01:52]} 22. Rah1 {[%clk 0:01:55]}  Rf8 {[%clk 0:01:52]} 23. Rxg6 {[%clk 0:01:49]}  Kf7 {[%clk 0:01:00]} 24. Rhh6 {[%clk 0:01:48]}  Bxc3 {[%clk 0:01:00]} 25. bxc3 {[%clk 0:01:43]}  Rh8 {[%clk 0:01:00]} 26. Rxd6 {[%clk 0:01:41]}  Nd7 {[%clk 0:01:01]} 27. Kxg3 {[%clk 0:01:29]}  Rxh6 {[%clk 0:01:00]} 28. Rxh6 {[%clk 0:01:26]}  Rb6 {[%clk 0:01:00]} 29. Rh1 {[%clk 0:01:21]}  Ba6 {[%clk 0:00:55]} 30. c4 {[%clk 0:01:20]}  Qb8 {[%clk 0:00:54]} 31. Bc3 {[%clk 0:01:16]}  Rg6 {[%clk 0:00:53]} 32. Rf1 {[%clk 0:01:04]}  Kg8 {[%clk 0:00:52]} 33. Kf2 {[%clk 0:01:00]}  Qd8 {[%clk 0:00:48]} 34. Rh1 {[%clk 0:00:59]}  Qf6 {[%clk 0:00:43]} 35. Qa4 {[%clk 0:00:50]}  Qe7 {[%clk 0:00:41]} 36. Qa5 {[%clk 0:00:39]}  Rb6 {[%clk 0:00:40]} 37. Kg3 {[%clk 0:00:38]}  Qg5 {[%clk 0:00:36]} 38. Bd2 {[%clk 0:00:39]}  Qe7 {[%clk 0:00:30]} 39. Rh6 {[%clk 0:00:38]}  Nf6 {[%clk 0:00:30]} 40. Bg5 {[%clk 0:00:31]}  Nxe4+ {[%clk 0:00:22]} 41. fxe4 {[%clk 0:00:32]}  Qxg5 {[%clk 0:00:22]} 42. Rxb6 {[%clk 0:00:32]}  Nh5+ {[%clk 0:00:19]} 43. Kf2 {[%clk 0:00:30]}  axb6 {[%clk 0:00:13]} 44. Qxa6 {[%clk 0:00:30]}  Qf4+ {[%clk 0:00:13]} 45. Ke1 {[%clk 0:00:30]}  Qc1+ {[%clk 0:00:12]} 46. Kf2 {[%clk 0:00:30]}  Qf4+ {[%clk 0:00:12]} 47. Ke1 {[%clk 0:00:28]}  Qc1+ {[%clk 0:00:12]} 48. Kf2 {[%clk 0:00:29]}  Qf4+ {[%clk 0:00:07]} 1/2-1/2


[Site "https://www.chess.com"]

[Event "Titled Tuesday Blitz April 12 Early 2022"]
[White "Korchmar, Vasiliy"]
[Black "Manolache, Marius"]
[WhiteFideId "24131750"]
[BlackFideId "1201530"]
[WhiteElo "2370"]
[BlackElo "2364"]
[Result "0-1"]
[Round "07"]
[TimeControl "180+1"]
[Date "2022.04.12"]
[WhiteClock "0:00:08"]
[BlackClock "0:00:47"]

1. d4 {[%clk 0:03:00]}  Nf6 {[%clk 0:02:59]} 2. Bf4 {[%clk 0:03:00]}  d6 {[%clk 0:02:56]} 3. Nc3 {[%clk 0:02:59]}  d5 {[%clk 0:02:54]} 4. e3 {[%clk 0:02:56]}  a6 {[%clk 0:02:53]} 5. Nf3 {[%clk 0:02:50]}  e6 {[%clk 0:02:51]} 6. Bd3 {[%clk 0:02:49]}  Nbd7 {[%clk 0:02:49]} 7. Ne5 {[%clk 0:02:42]}  Be7 {[%clk 0:02:41]} 8. Qf3 {[%clk 0:02:39]}  h6 {[%clk 0:02:36]} 9. O-O-O {[%clk 0:02:38]}  c5 {[%clk 0:02:29]} 10. g4 {[%clk 0:02:28]}  c4 {[%clk 0:02:25]} 11. Be2 {[%clk 0:02:28]}  b5 {[%clk 0:02:14]} 12. Nc6 {[%clk 0:02:24]}  Qb6 {[%clk 0:02:14]} 13. Nxe7 {[%clk 0:02:24]}  Kxe7 {[%clk 0:02:14]} 14. h4 {[%clk 0:02:24]}  Bb7 {[%clk 0:02:00]} 15. g5 {[%clk 0:02:21]}  Ne4 {[%clk 0:01:59]} 16. Nxe4 {[%clk 0:02:19]}  dxe4 {[%clk 0:01:59]} 17. Qg3 {[%clk 0:02:19]}  h5 {[%clk 0:01:53]} 18. f3 {[%clk 0:02:20]}  c3 {[%clk 0:01:44]} 19. fxe4 {[%clk 0:02:16]}  Bxe4 {[%clk 0:01:42]} 20. Bf3 {[%clk 0:02:16]}  cxb2+ {[%clk 0:01:31]} 21. Kb1 {[%clk 0:02:15]}  Qc6 {[%clk 0:01:30]} 22. Bxe4 {[%clk 0:02:12]}  Qxe4 {[%clk 0:01:30]} 23. Bd6+ {[%clk 0:02:10]}  Ke8 {[%clk 0:01:30]} 24. Rhf1 {[%clk 0:02:08]}  Rc8 {[%clk 0:01:29]} 25. Qf2 {[%clk 0:02:08]}  f5 {[%clk 0:01:26]} 26. gxf6 {[%clk 0:02:04]}  gxf6 {[%clk 0:01:23]} 27. Rd3 {[%clk 0:01:50]}  Kf7 {[%clk 0:01:22]} 28. Be5 {[%clk 0:01:43]}  Rh6 {[%clk 0:01:21]} 29. Rg1 {[%clk 0:01:29]}  Rg8 {[%clk 0:01:19]} 30. Rxg8 {[%clk 0:01:24]}  Kxg8 {[%clk 0:01:19]} 31. Bf4 {[%clk 0:01:24]}  Rg6 {[%clk 0:01:18]} 32. Qe2 {[%clk 0:01:14]}  Rg1+ {[%clk 0:01:00]} 33. Kxb2 {[%clk 0:01:14]}  Rg2 {[%clk 0:00:55]} 34. Qd1 {[%clk 0:01:09]}  Nb6 {[%clk 0:00:52]} 35. Qxh5 {[%clk 0:00:23]}  Qc6 {[%clk 0:00:51]} 36. Rc3 {[%clk 0:00:11]}  Na4+ {[%clk 0:00:50]} 37. Kc1 {[%clk 0:00:07]}  Rg1+ {[%clk 0:00:48]} 38. Kd2 {[%clk 0:00:07]}  Qxc3+ {[%clk 0:00:48]} 39. Ke2 {[%clk 0:00:07]}  Qxc2+ {[%clk 0:00:47]} 40. Kf3 {[%clk 0:00:08]}  Qd1+ {[%clk 0:00:47]} 0-1


[Site "https://www.chess.com"]